Cogmind - Beta 15 @@@ ROGUE MODE // 2025.06.14 @ 05:42:38 Player: Storm Mk9 Result: Destroyed by S-27 Virus with Autogun Performance ------------- Evolutions (3) 1500 Regions Visited (6) 1200 Robots Destroyed (94) 470 Value Destroyed (3222) 3222 Prototype IDs (9) 180 Alien Tech Used (0) 0 Bonus (0) 0 TOTAL SCORE: 6572 Bonus ------- None Cogmind --------- Core Integrity 0/700 Matter 199/300 Energy 232/240 System Corruption 1% Temperature Warm (126) Movement Treading (160) Location -7/Lower Caves Parts ------- > --- POWER (1) -------- Nuclear Core > --- PROPULSION (3) --- Medium Treads Medium Treads > --- UTILITY (6) ------ Large Storage Unit Improved Signal Interpreter Dynamic Insulation System > --- WEAPON (3) ------- Heavy EM Pulse Gun Particle Gun Heavy Machine Gun > --- INVENTORY (15) --- Reinforced Ion Engine Improved Field Recycling Unit (0) Mini Assault Cannon Heavy Rocket Launcher Rocket Array Katana Peak State ------------ > --- POWER ------------ Enhanced Nuclear Core > --- PROPULSION ------- Light Treads Armored Treads Medium Treads > --- UTILITY ---------- Cooling System Large Storage Unit Improved Light Armor Plating Dynamic Insulation System Corruption Screen Improved Field Recycling Unit > --- WEAPON ----------- Advanced Beam Rifle Autogun Flak Gun > --- INVENTORY -------- Reinforced Ion Engine Nuclear Core Aluminum Leg Improved Heat Sink Improved Heat Sink Large Matter Pod Scrap Shield Particle Gun Particle Gun Heavy Assault Rifle Heavy Rocket Launcher Katana [Rating: 44] Favorites ----------- Power Reinforced Ion Engine Engine Reinforced Ion Engine Power Core Enhanced Nuclear Core Propulsion Light Treads Treads Light Treads Leg Aluminum Leg Utility Large Storage Unit Device Seismic Detector Storage Large Storage Unit Processor Improved Signal Interpreter Protection Hardened Medium Armor Plating Weapon Autogun Energy Gun Improved Medium Laser Ballistic Gun Autogun Ballistic Cannon Mini Assault Cannon Launcher Rocket Array Slashing Weapon Mining Claw Build | -11 -10 -10 -10 -8 -7 -7 ------- Run | Yrd Mat Min Sub Mat Fac Low Slots Evolved 6 | . . . . 4 2 . Power . | . . . . . . . Propulsion 1 | . . . . 1 . . Utility 4 | . . . . 3 1 . Weapon 1 | . . . . . 1 . Parts Attached 79 | 7 8 1 1 24 28 10 Power 6 | 1 1 . . 1 2 1 Engine 4 | 1 1 . . 1 1 . Core 2 | . . . . . 1 1 Reactor . | . . . . . . . Propulsion 20 | 2 . 1 . 8 6 3 Treads 13 | 2 . . . 5 3 3 Leg 7 | . . 1 . 3 3 . Wheel . | . . . . . . . Hover . | . . . . . . . Flight . | . . . . . . . Utility 26 | 2 4 . . 7 11 2 Device 11 | 1 3 . . 2 5 . Storage 4 | 1 1 . . . 1 1 Processor 3 | . . . . 1 1 1 Hackware . | . . . . . . . Protection 8 | . . . . 4 4 . Artifact . | . . . . . . . Weapon 27 | 2 3 . 1 8 9 4 Energy Gun 8 | 1 2 . . 2 2 1 Energy Cannon . | . . . . . . . Ballistic Gun 14 | 1 1 . . 4 5 3 Ballistic Cannon 1 | . . . . . 1 . Launcher 2 | . . . . 1 1 . Special Weapon . | . . . . . . . Impact Weapon . | . . . . . . . Slashing Weapon 2 | . . . 1 1 . . Piercing Weapon . | . . . . . . . Special Melee Weapon . | . . . . . . . Unidentified Prototypes 5 | . 1 . . 1 3 . Parts Lost 36 | . . 1 . 3 26 6 Power 1 | . . . . . 1 . Propulsion 12 | . . 1 . . 9 2 Utility 11 | . . . . 1 9 1 Weapon 12 | . . . . 2 7 3 Highest Loss Streak 11 | . . 1 . 1 11 6 To Critical Strikes 1 | . . . . . 1 . Average Backups 11 | 3 7 9 11 13 12 8 Power 1 | . 1 2 2 2 1 . Propulsion 1 | 1 2 1 1 1 . . Utility 4 | . 1 3 4 6 5 . Weapon 3 | 1 2 3 3 3 4 6 Tool/Special . | . . . . . . . Unused Backups 8 | . 4 . . 2 1 1 Power 1 | . 1 . . . . . Propulsion . | . . . . . . . Utility 4 | . 2 . . 1 1 . Weapon 3 | . 1 . . 1 . 1 Tool/Special . | . . . . . . . Average Slot Usage (%) 91 | . 99 100 100 89 91 71 Engine 8 | . 14 14 14 9 2 6 Core 1 | . . . . . 4 . Treads 17 | . 28 14 14 20 19 1 Leg 5 | . . 13 14 6 1 6 Device 15 | . 14 14 14 14 17 14 Storage 10 | . 14 14 14 9 7 13 Processor 4 | . . . . 5 5 5 Protection 4 | . . . . 6 7 . Energy Gun 8 | . 13 14 14 3 12 . Ballistic Gun 13 | . 14 14 13 14 8 18 Peak Build Rating 44 | 7 12 12 12 32 44 36 Average Rating 25 | 5 9 11 12 26 37 32 On Entrance 15 | . 7 11 12 12 31 33 Naked Turns . | . . . . . . . Heaviest Build 63 | 14 37 36 36 51 59 63 Greatest Support 68 | 40 40 20 20 60 68 56 Greatest Overweight (x) 5 | . . 1 1 2 2 5 Average Overweight (x) . | . . 1 1 . . 1 Largest Inventory Capacity 15 | 8 15 15 15 15 15 15 Average Capacity 14 | 7 9 15 15 15 15 14 Most Carried 15 | 5 10 11 14 15 15 9 Average Carried 12 | 3 7 10 12 14 13 8 Final Capacity 15 | 8 15 15 15 15 15 15 Final Carried 15 | 5 10 11 14 15 9 6 Class Distribution -------------------- 63% | Mutant 16% | Tank 10% | Scavenger-Gunner 4% | Scavenger-Tank 4% | Gunner Dominant Class ---------------- Mutant | -10/Materials Mutant | -10/Mines Mutant | -10/Subcaves Mutant | -8/Materials Tank | -7/Factory Scavenger-Gunner | -7/Lower Caves Resources | -11 -10 -10 -10 -8 -7 -7 ----------- Run | Yrd Mat Min Sub Mat Fac Low Matter Collected 2645 | 260 189 49 29 851 852 415 Remotely . | . . . . . . . Salvage Created 3593 | 61 312 100 52 1251 1475 342 Parts 211 | 5 21 12 6 87 67 13 Haulers Intercepted . | . . . . . . . Recyclers Shooed . | . . . . . . . Parts Field Recycled 3 | . . . . . . 3 Retrieved Matter 3 | . . . . . . 3 Parts Self-Destructed 12 | . . . 3 . . 9 Prevented . | . . . . . . . Kills | -11 -10 -10 -10 -8 -7 -7 ------- Run | Yrd Mat Min Sub Mat Fac Low Combat Hostiles Destroyed 83 | . 8 6 1 31 29 8 Guns 73 | . 8 6 1 28 26 4 Cannons 4 | . . . . . 3 1 AOE 6 | . . . . 3 . 3 Classes Destroyed 14 | 1 3 . 1 3 5 1 Worker 2 | . . . . . 2 . Tunneler 3 | 3 . . . . . . Recycler 1 | . . . . 1 . . Mechanic 1 | . . . . . 1 . Operator 1 | . . . . 1 . . Watcher 3 | . 2 . . 1 . . Swarmer 31 | . 3 6 . 12 3 7 Grunt 29 | . 5 . . 11 13 . Sentry 13 | . . . . 8 5 . Specialist 4 | . . . . . 4 . Programmer 3 | . . . . . 3 . Heavy 1 | . . . . . 1 . Behemoth 1 | . . . . . . 1 Subdweller 1 | . . . 1 . . . Best Kill Streak 4 | 3 3 3 1 4 4 3 Combat Bots Only 4 | . 3 3 1 4 4 3 Max Kills in Single Turn 3 | 1 1 1 1 3 2 3 Gunslinging . | . . . . . . . Exploded 3 | . . . . 3 . 3 Melee . | . . . . . . . Uniques/NPCs Destroyed . | . . . . . . . Combat | -11 -10 -10 -10 -8 -7 -7 -------- Run | Yrd Mat Min Sub Mat Fac Low Hostile Shots Fired 668 | . 55 22 3 165 348 75 Missed 185 | . 21 4 . 36 103 21 Hits 483 | . 34 18 3 129 245 54 Projectile 483 | . 34 18 3 129 245 54 Critical Strikes 18 | . . . 1 8 8 1 Damage Taken 6949 | . 388 139 66 1697 3469 1190 Core 983 | . 91 14 22 150 280 426 Absorbed by Shields . | . . . . . . . Ignored by Resistances 142 | . . . . . 142 . Regen/Repaired (Parts) 79 | . . . . 58 21 . Core Remaining (%) 73 | 100 . . 49 72 . . Volleys Fired 250 | 5 27 9 3 83 96 27 Largest 3 | 2 2 2 2 2 3 3 Hottest 154 | 60 76 76 76 86 154 140 Shots Fired 593 | 10 54 18 6 164 272 69 Gun 559 | 10 54 18 6 163 254 54 Cannon 32 | . . . . . 18 14 Launcher 2 | . . . . 1 . 1 Special . | . . . . . . . Kinetic 381 | 5 27 9 3 134 139 64 Thermal 208 | 5 27 9 3 29 133 2 Explosive 2 | . . . . 1 . 1 Electromagnetic 2 | . . . . . . 2 Robot Hit Streak 18 | 3 6 7 12 15 18 8 Robot Miss Streak 5 | 1 2 2 . 2 5 3 Penetration Max . | . . . . . . . Secondary Targets 5 | . . 1 . 1 2 1 Max Gunslinging Chain 1 | . . 1 . 1 1 1 Shots Hit Robots 422 | 7 35 11 5 121 200 43 Core Hits 184 | 3 14 6 2 57 82 20 Critical Kills 1 | . . . . . . 1 Critical Parts Destroyed . | . . . . . . . Critical Strikes 12 | . . . . . 11 1 Burn 11 | . . . . . 11 . Destroy 1 | . . . . . . 1 Melee Attacks 14 | . . . 3 11 . . Impact . | . . . . . . . Slashing 14 | . . . 3 11 . . Piercing . | . . . . . . . Sneak Attacks . | . . . . . . . Combat Hostiles . | . . . . . . . Follow-up Attacks . | . . . . . . . Damage Inflicted 8169 | 82 473 179 76 2221 3901 1237 Guns 7168 | 82 473 179 76 2023 3571 764 Cannons 622 | . . . . . 330 292 Explosions 379 | . . . . 198 . 181 Melee . | . . . . . . . Ramming . | . . . . . . . Kinetic 4925 | 49 217 41 27 1666 1912 1013 Thermal 2853 | 33 256 138 49 357 1989 31 Explosive 379 | . . . . 198 . 181 Electromagnetic 12 | . . . . . . 12 Impact . | . . . . . . . Slashing . | . . . . . . . Piercing . | . . . . . . . Highest Corruption 2 | . . . . 2 1 1 Average Corruption 1 | . . . . 1 1 1 Corruption Purged . | . . . . . . . Corruption Blocked 5 | . . . . . 5 . Effects 12 | . . . . 3 2 7 Message Errors 1 | . . . . . . 1 Matter Fused 3 | . . . . 1 . 2 Heat Flow Errors 3 | . . . . 1 1 1 Energy Discharges 2 | . . . . 1 . 1 Data Loss (minor) 1 | . . . . . . 1 Misfires 1 | . . . . . 1 . Alerts 1 | . . . . . . 1 Overload Shots . | . . . . . . . Overflow Damage . | . . . . . . . Projectiles . | . . . . . . . Explosions . | . . . . . . . Melee . | . . . . . . . Knockbacks . | . . . . . . . Impact . | . . . . . . . Kinetic . | . . . . . . . Secondary . | . . . . . . . Self-Inflicted Damage . | . . . . . . . Shots . | . . . . . . . Rammed . | . . . . . . . Targets Rammed . | . . . . . . . Kicked . | . . . . . . . Crushed . | . . . . . . . Highest Temperature 554 | . 360 119 . 315 359 554 Average Temperature 109 | . 78 50 . 88 98 235 Received Heat Transfer 2336 | . 195 . . 738 987 416 Effects 18 | . . . . 1 7 10 Shutdowns 4 | . . . . . 1 3 Energy Bleed 1 | . . . . 1 . . Interference 8 | . . . . . 6 2 Matter Decay 2 | . . . . . . 2 Short Circuit 1 | . . . . . . 1 Damage (minor) 1 | . . . . . . 1 Damage (core) 1 | . . . . . . 1 Siege Activations . | . . . . . . . Martial Activations . | . . . . . . . Shielding Activations . | . . . . . . . Robots Disrupted . | . . . . . . . Combat Hostiles . | . . . . . . . Robots Corrupted . | . . . . . . . Combat Hostiles . | . . . . . . . Parts Fried . | . . . . . . . Impact Corruptions . | . . . . . . . Robots Melted . | . . . . . . . Combat Hostiles . | . . . . . . . Parts Melted 18 | . 2 1 . . 15 . Heat Transferred 6528 | 75 570 296 111 740 4662 74 Parts Sabotaged . | . . . . . . . Parts Stolen . | . . . . . . . Parts Stripped . | . . . . . . . Power Chain Reactions . | . . . . . . . Alert | -11 -10 -10 -10 -8 -7 -7 ------- Run | Yrd Mat Min Sub Mat Fac Low Maximum Alert Level 1 | . . . . 1 1 . Low Security (%) 78 | 100 100 100 . 79 60 . Level 1 21 | . . . . 20 39 . Level 2 . | . . . . . . . Level 3 . | . . . . . . . Level 4 . | . . . . . . . Level 5 . | . . . . . . . High Security . | . . . . . . . Max Security . | . . . . . . . Peak Influence 328 | 5 105 106 . 328 307 . Initial 147 | . . 31 . . 147 . Average 93 | 1 27 31 . 93 144 . Influence Increases 2554 | 15 297 170 . 877 985 210 Destroy 0b10 Robot/C 1640 | . 160 120 . 620 580 160 Destroy 0b10 Robot/NC 65 | 15 10 . . 15 15 10 Destroy Leader 416 | . 44 20 . 152 160 40 Successful Hack 78 | . 8 . . 26 44 . Disable Machine 45 | . . 15 . 15 15 . Destroy Structure 25 | . . . . 19 6 . Lose Combat Pursuer 285 | . 75 15 . 30 165 . Influence Decreases 2524 | 15 216 251 . 552 1008 482 Entered New Map 341 | . . 50 . . 178 113 Time Decay 1893 | 15 216 191 . 532 570 369 Lost Part 290 | . . 10 . 20 260 . Squads Dispatched 19 | . 2 . . 2 15 . Investigation 2 | . . . . . 2 . Extermination 4 | . . . . . 4 . Reinforcement 13 | . 2 . . 2 9 . Assault . | . . . . . . . Garrison . | . . . . . . . Intercept . | . . . . . . . Searches Triggered . | . . . . . . . Construction Impeded 1 | . . . . . 1 . Haulers Reinforced . | . . . . . . . Active Scanning Responses . | . . . . . . . Cargo Convoy Interrupts 1 | . . . . . 1 . Stealth | -11 -10 -10 -10 -8 -7 -7 --------- Run | Yrd Mat Min Sub Mat Fac Low Distress Signals 7 | . 1 . . 6 . . Communications Jammed . | . . . . . . . Distress Signals . | . . . . . . . Times Spotted 135 | . 19 7 1 49 49 10 Peak Tracking Total 7 | . 4 3 1 6 7 3 Tactical Retreats 16 | . 4 1 . 2 9 . Traps | -11 -10 -10 -10 -8 -7 -7 ------- Run | Yrd Mat Min Sub Mat Fac Low Traps Triggered 2 | . . . . 2 . . Indirectly . | . . . . . . . Trap Hack Attempts . | . . . . . . . Triggered . | . . . . . . . Disarmed . | . . . . . . . Reprogrammed . | . . . . . . . Reused . | . . . . . . . Traps Extracted . | . . . . . . . Installed . | . . . . . . . Triggered . | . . . . . . . Machines | -11 -10 -10 -10 -8 -7 -7 ---------- Run | Yrd Mat Min Sub Mat Fac Low Machines Disabled 3 | . . 1 . 1 1 . Max in Single Turn 1 | . . 1 . 1 1 . Garrison Access 1 | . . . . 1 . . Machines Repaired . | . . . . . . . Machines Dismantled . | . . . . . . . Machines Sabotaged . | . . . . . . . Overloaded Fab Kills . | . . . . . . . Hacking | -11 -10 -10 -10 -8 -7 -7 --------- Run | Yrd Mat Min Sub Mat Fac Low Machines Accessed 21 | . 3 . 1 11 6 . Terminals 16 | . 2 . . 10 4 . Fabricators 1 | . . . . . 1 . Repair Stations . | . . . . . . . Recycling Units 2 | . 1 . . . 1 . Scanalyzers . | . . . . . . . Garrison Access 1 | . . . . 1 . . Total Hacks 62 | . 12 . 4 32 14 . Successful 36 | . 6 . 4 21 5 . Failed 26 | . 6 . . 11 9 . Catastrophic 4 | . 1 . . 1 2 . Database Lockouts . | . . . . . . . Manual 32 | . 7 . . 21 4 . Terminals 52 | . 11 . . 31 10 . Fabricators 2 | . . . . . 2 . Repair Stations . | . . . . . . . Recycling Units 3 | . 1 . . . 2 . Scanalyzers . | . . . . . . . Garrison Access 1 | . . . . 1 . . Terminal Hacks 18 | . 3 . 4 8 3 . Record 4 | . . . 4 . . . Robot Analysis 2 | . . . . 2 . . Prototype ID Bank 2 | . 1 . . . 1 . Branch Access Points 3 | . 1 . . 1 1 . Emergency Access Points 3 | . . . . 2 1 . Alert Level 1 | . . . . 1 . . Locate Traps 1 | . 1 . . . . . Dispatch Records 1 | . . . . 1 . . Hauler Manifests 1 | . . . . 1 . . Fabricator Hacks . | . . . . . . . Repair Station Hacks . | . . . . . . . Recycling Unit Hacks . | . . . . . . . Scanalyzer . | . . . . . . . Garrison Access Hacks 1 | . . . . 1 . . Seal Access 1 | . . . . 1 . . Unauthorized Hacks 17 | . 3 . . 12 2 . Terminals 17 | . 3 . . 12 2 . Track 7 | . 1 . . 6 . . Botnet 7 | . 1 . . 5 1 . Operators 3 | . 1 . . 1 1 . Fabricators . | . . . . . . . Repair Stations . | . . . . . . . Recycling Units . | . . . . . . . Scanalyzers . | . . . . . . . Garrison Access . | . . . . . . . Data Cores Recovered 1 | . . . . 1 . . Used . | . . . . . . . Hacking Detections 16 | . 3 . . 8 5 . Full Trace Events 1 | . . . . . 1 . Feedback Events . | . . . . . . . Feedback Blocked . | . . . . . . . Robot Schematics Acquired . | . . . . . . . Robots Built . | . . . . . . . Authchips . | . . . . . . . Time . | . . . . . . . Total Robot Build Rating . | . . . . . . . Part Schematics Acquired . | . . . . . . . Parts Built . | . . . . . . . Authchips . | . . . . . . . Time . | . . . . . . . Total Part Build Rating . | . . . . . . . Parts Repaired . | . . . . . . . Time . | . . . . . . . Parts Recycled . | . . . . . . . Recycled Matter . | . . . . . . . Retrieved Matter . | . . . . . . . Retrieved Components . | . . . . . . . Parts Scanalyzed . | . . . . . . . Part Schematics Acquired . | . . . . . . . Parts Damaged . | . . . . . . . Bothacking | -11 -10 -10 -10 -8 -7 -7 ------------ Run | Yrd Mat Min Sub Mat Fac Low Used RIF Installer . | . . . . . . . Robots Hacked . | . . . . . . . Non-combat . | . . . . . . . Combat . | . . . . . . . Robot Hacks Applied . | . . . . . . . Relay Couplers Released . | . . . . . . . Fabnet Peak Effective % . | . . . . . . . Robots Rewired . | . . . . . . . Allies Hacked . | . . . . . . . Hacks Repelled . | . . . . . . . Allies | -11 -10 -10 -10 -8 -7 -7 -------- Run | Yrd Mat Min Sub Mat Fac Low Total Allies 1 | . . . . . . 1 Largest Group 1 | . . . . . . 1 Highest-Rated Group 127 | . . . . . . 127 Highest-Rated Ally 127 | . . . . . . 127 Total Orders . | . . . . . . . Ally Attacks . | . . . . . . . Total Damage . | . . . . . . . Kills . | . . . . . . . Allies Corrupted . | . . . . . . . Allies Melted . | . . . . . . . Intel | -11 -10 -10 -10 -8 -7 -7 ------- Run | Yrd Mat Min Sub Mat Fac Low Active Infowar (turns) 5325 | 46 994 601 959 1389 1336 . Seismic 5325 | 46 994 601 959 1389 1336 . Robot Analysis Total 2 | . . . . 2 . . Derelict Logs Recovered 1 | . . . 1 . . . Drone Launches . | . . . . . . . Drone Recoveries . | . . . . . . . Exploration | -11 -10 -10 -10 -8 -7 -7 ------------- Run | Yrd Mat Min Sub Mat Fac Low Turns Passed 9409 | 122 1176 601 959 2929 2489 1133 Spaces Moved 3773 | 62 435 231 343 1170 1135 397 Core 24 | 9 . . . . . 15 Treads 3132 | 53 435 231 343 920 1121 29 Legs 617 | . . . . 250 14 353 Wheels . | . . . . . . . Hover . | . . . . . . . Flight . | . . . . . . . Fastest Speed 50 | 50 160 240 240 160 160 160 Average Speed 188 | 144 160 240 240 170 172 254 Slowest Speed 330 | 160 160 240 240 320 260 330 Overloaded Moves . | . . . . . . . Propulsion Burnouts . | . . . . . . . Robots Hopped . | . . . . . . . Potential Cave-ins 2 | . . . . 2 . . Cave-ins Triggered . | . . . . . . . Exploration Rate (%) 44 | 5 52 60 27 91 28 48 Regions Visited 6 Branch Regions 3 Pre-discovered Areas . | . . . . . . . Known Exits Taken 3 | . 1 . . 1 1 . Unknown Exits Taken 3 | 1 . 1 1 . . . Scrap Searched 2 | . . 1 . . . 1 Spaces Dug 12 | . . . . 11 1 . Terrain Destroyed 38 | . . . . 16 3 19 Melee 11 | . . . . 11 . . Projectile 4 | . . . . . 3 1 AOE 23 | . . . . 5 . 18 Terrain Rammed . | . . . . . . . Walls Destroyed . | . . . . . . . Machines Disabled . | . . . . . . . Actions | -11 -10 -10 -10 -8 -7 -7 --------- Run | Yrd Mat Min Sub Mat Fac Low Total 5563 | 85 864 261 467 1933 1482 471 Wait 1299 | . 370 20 115 598 176 20 Move 3767 | 61 434 230 342 1169 1134 397 Hop . | . . . . . . . Pick Up 74 | 12 11 1 2 16 26 6 Fast Attach 9 | . 2 . . 3 3 1 Attach 53 | 7 . 1 . 7 29 9 Detach 3 | . . . . . 1 2 Swap 51 | . 8 . 2 28 8 5 Drop 43 | . 12 . . 18 9 4 Fire 250 | 5 27 9 3 83 96 27 Melee 14 | . . . 3 11 . . Ram . | . . . . . . . Kick . | . . . . . . . Crush . | . . . . . . . Escape Stasis . | . . . . . . . Rewire . | . . . . . . . Trap . | . . . . . . . Miscellaneous . | . . . . . . . Route ------- -11/Scrapyard -10/Materials (discovered 3 exits: [*Mat] / *Min x2) -10/Mines (discovered 3 exits: [*Mat x2] / *Sub) -10/Subcaves -8/Materials (discovered 2 exits: *Fac x2) -7/Factory (discovered 3 exits: [*Fac] / *Low x2) -7/Lower Caves History --------- Turn | Location | Event 8 | -11/Scrapyard | Discovered new exit (range 16) 123 | -11/Scrapyard | Entered Materials 314 | -10/Materials | Build established: Mutant 342 | -10/Materials | Identified exit to Mines 608 | -10/Materials | Discovered new exit (range 12) 1299 | -10/Materials | Entered Mines 1474 | -10/Mines | Found a Scrap Suit stashed away for nefarious purposes 1479 | -10/Mines | Found Scrap Suit 1487 | -10/Mines | Discovered new exit (range 12) 1813 | -10/Mines | Discovered new exit (range 14) 1891 | -10/Mines | Discovered new exit (range 5) 1900 | -10/Mines | Entered Subcaves 1969 | -10/Subcaves | Shifting Twisted Machinery released Scrap Shield 1972 | -10/Subcaves | Shifting Twisted Machinery released Sub. Optics 2201 | -10/Subcaves | Visited Clippyterm 2209 | -10/Subcaves | Learned Research machine intel 2523 | -10/Subcaves | Learned Materials terminal intel 2747 | -10/Subcaves | Core integrity fell below 50% 2756 | -10/Subcaves | Discovered new exit (range 12) 2859 | -10/Subcaves | Entered Materials 2859 | -8/Materials | Evolved 4 slots: Propulsion x1, Utility x3 2860 | -8/Materials | Loaded intel: 11 terminal locations 3652 | -8/Materials | Discovered new exit (range 5) 3865 | -8/Materials | Identified exit to Factory 4106 | -8/Materials | Discovered exit to Factory (range 13) 5788 | -8/Materials | Entered Factory 5788 | -7/Factory | Evolved 2 slots: Utility x1, Weapon x1 6078 | -7/Factory | Build established: Tank 6641 | -7/Factory | Discovered new exit (range 8) 6900 | -7/Factory | Lost 3 parts (1n1u1w) 6910 | -7/Factory | Discovered new exit (range 6) 7196 | -7/Factory | Cargo convoy interrupted 7288 | -7/Factory | Lost 5 parts (2n2u1w) 7574 | -7/Factory | Found Prototype Launcher 7575 | -7/Factory | Identified Rocket Array 7751 | -7/Factory | Build established: Scavenger-Tank 7794 | -7/Factory | Identified exit to Lower Caves 7918 | -7/Factory | Lost 11 parts (4n4u3w) 8276 | -7/Factory | Lost 6 parts (1p2n2u1w) 8277 | -7/Factory | Entered Lower Caves 8498 | -7/Lower Caves | Build established: Gunner 8874 | -7/Lower Caves | Build established: Scavenger-Gunner 9232 | -7/Lower Caves | Spotted B-75 Beast 9240 | -7/Lower Caves | Core integrity fell below 50% 9271 | -7/Lower Caves | Core integrity fell below 20% 9277 | -7/Lower Caves | Destroyed B-75 Beast 9303 | -7/Lower Caves | Lost 6 parts (2n1u3w) 9410 | -7/Lower Caves | Destroyed by S-27 Virus with Autogun Last Messages --------------- 09337_ Acquired 2 matter. 09340_ Searching scrap... 09340_ Found Med. Treads. 09340_ Found Hvy. EM Pulse Gun. 09340_ Found Med. Treads. 09340_ Found Lrg. Storage Unit. 09340_ Found 43 Matter. 09341_ Acquired 43 matter. 09346_ Acquired Med. Treads. 09355_ Acquired Hvy. EM Pulse Gun. 09356_ Acquired 12 matter. 09358_ Acquired 5 matter. 09361_ Acquired 6 matter. 09364_ Acquired Lrg. Storage Unit. 09374_ Acquired Hvy. Rocket Launcher. 09376_ Acquired Rnf. Ion Engine. 09385_ Acquired 2 matter. 09400_ Acquired 23 matter. 09404_ S-27 Virus destroyed. 09404_ Switching to secondary target: S-27 Virus. Map ----- +----------------------------------------------------+ | ?????????????????????????????????????????????????? | | ?????????????????????????????????????????????????? | | ?????????????????????????????????????????????????? | | ?????????????????????????????????????????????????? | | ?????????????????????????????????????????????????? | | ?????????????????????????????????????????????????? | | ?????????????????????????????????????????????????? | | ?????????????????????????????????????????????????? | | ?????????????????????????????????????????????????? | | ?????????????????????????????????????????????????? | | ?????????????????????????????????????????????????? | | ?????????????????????????????????????????????????? | | ?????????????????????????????????????????????????? | | ??????????????????????????????????????####???????? | | ????????????????????????###??????????## ##????### | | ?????????????????######## ??######### ##???# | | ????????????????? ??# # ##??# | | ???????????????????$ ??# # #??# | | ?????????????????????# ### ## #??# | | ?????????????????????# ## ## #??## | | ?????????????????????# "" ##??## | | ?????????????????????# " ##### | | ?????????????????????## ## # "" | | ??????????????????????#??#; ### [ | | ???????????????????#######; #?## !# "## | | ???????????????????# @ #??# ### "## | | ?????????????????# s #?# #?# "### | | ????????????????# s% ##?###### #### | | ????????????????# ## ### ##???????# | | ????????????????### ??#####?## #???????# | | ??????????????????#??????????## ##??# ## | | ??????????????????????????????# #??? #? | | ??????????????????????????????# #??? ## ? | | ??????????????????????????????# ??? ???### # | | ??????????????????????????????# ??????????### | | ??????????????????????????????## #####???????????? | | ????????????????????????????????##???????????????? | | ?????????????????????????????????????????????????? | | ?????????????????????????????????????????????????? | | ?????????????????????????????????????????????????? | | ?????????????????????????????????????????????????? | | ?????????????????????????????????????????????# | | ??????????????????????????????????????????? | | ??????????????????????????????????????????? #### | | ??????????????????????????????????????????? ?????? | | ?????????????????????????????????????????????????? | | ?????????????????????????????????????????????????? | | ?????????????????????????????????????????????????? | | ????????????????????????????????????????????????? | | ???????????????????????????????????????????????? | +----------------------------------------------------+ Best States ------------- Heat Dissipation 84 Energy Generation 17 Energy Capacity 300 Matter Stores 357 Matter Capacity 450 Sight Range 16 Terrain Scan Density 10 EM Shielding 2 Corruption Block 8 Armor Coverage 800 Resistance: TH 10 Resistance: EM 15 Weapon Cycling 15 Evasion (%) 50 Recoil Reduction 3 Item Schematics ----------------- None Robot Schematics ------------------ None Fabricated ------------ Nothing Repaired ---------- Nothing Alien Tech Used ----------------- None Achievements -------------- None Challenges ------------ None Game ------ Seed SchematicScrapHumpback Manual? 0 Play Time 01:23:27 Cumulative 39.7 hours Start 2025.06.14 @ 04:15:14 End 2025.06.14 @ 05:42:38 Sessions 1 Manual Loads 0 Difficulty Rogue Special Mode None Game No. 31 Rogue 12 Adventurer 0 Explorer 19 Win Type - Total 0 Types 0/0/0/0/0/0/0/0/0/0 Lore% 40 Gallery% 31 Achievement% 67 Wizard Run 0 Options --------- Layout 1 ASCII 0 Keyboard 0 Movement Mouse Keybinds 0 Fullscreen 0 Font 14/SmallcapsGlow Map View 59x45 Zoom Use 0% Tactical HUD 1 Map Filters NONE Filters NONE Steam SD RUN: 8f5547d1-9204-436d-9c09-f5ffebc14a4d